bitfinex-derivatives/quotes_SOLF0:USTF0_20240911
["timestamp","ask_amount","ask_price","bid_price","bid_amount"]
[1726065140308,29.69,129.11,128.99,29.69]
[1726065140707,3.8733,129.1,129.05,3.8744]
[1726065141107,2.6571,129.09,129.05,3.8744]
[1726065141808,2.6571,129.09,128.99,29.69]
[1726065141809,2.6571,129.09,129.04,3.8749]
[1726065142011,2.6571,129.09,128.99,29.69]
[1726065142608,1.3371,129.12,129.01,29.69]
[1726065142812,1.3371,129.12,129.09,3.8732]
[1726065143210,1.3371,129.12,129.04,33.55499263]
[1726065143415,1.3371,129.12,129.04,29.69]
[1726065143615,1.3371,129.12,129.09,3.8734]
[1726065144315,1.3371,129.12,129.08,3.8737]
[1726065144623,29.69,129.1,128.99,37.4424]
[1726065144812,29.69,129.1,128.99,29.69]
[1726065145013,29.69,129.1,129.06,3.8743]
[1726065145319,5.13203928,129.12,129.02,29.69]
[1726065145824,33.5635,129.09,129.0,29.69]
[1726065146020,29.69,129.09,129.0,29.69]
[1726065146413,29.69,129.09,128.97,29.69]
[1726065146621,29.69,129.07,129.03,3.875]
[1726065146816,1.3033,129.06,129.03,3.875]
[1726065147120,1.3033,129.06,128.98,8.04566784]
[1726065147923,29.69,129.07,128.98,8.04566784]
[1726065148321,29.69,129.09,128.98,8.04566784]
[1726065148518,29.69,129.09,129.04,3.8748]
[1726065148822,29.69,129.09,128.98,8.04566784]
[1726065149026,1.3033,129.11,128.99,29.69]
[1726065149428,5.1763,129.11,128.99,29.69]
[1726065149625,1.3033,129.11,128.99,29.69]
[1726065149825,1.3033,129.11,129.05,3.8744]
[1726065150026,29.69,129.1,128.99,29.69]
[1726065150231,29.69,129.09,128.98,8.04566784]
[1726065150427,29.69,129.09,129.02,3.8753]
[1726065150623,3.8741,129.07,129.02,3.8753]
[1726065150820,3.8741,129.07,128.98,8.04566784]
[1726065151025,3.8741,129.07,129.02,3.8752]
[1726065151233,3.8741,129.07,128.98,8.04566784]
[1726065151535,3.8741,129.07,129.03,3.875]
[1726065151737,29.69,129.09,128.98,8.04566784]
[1726065152530,29.69,129.06,128.98,8.04566784]
[1726065153634,36.3469,129.06,128.98,8.04566784]
[1726065154027,3.8747,129.05,129.01,3.8756]
[1726065154232,3.90869632,129.05,128.98,8.04566784]
[1726065154432,3.90869632,129.05,128.98,3.88406784]
[1726065154735,5.33559632,129.05,128.95,33.6127]
[1726065155239,5.33559632,129.05,128.95,37.44874651]
[1726065155440,5.33559632,129.05,129.02,3.8755]
[1726065155838,9.21029632,129.05,129.01,3.8757]
[1726065156339,5.3016,129.05,129.01,3.8757]
[1726065156636,32.4723,129.06,128.95,37.44874651]
[1726065157132,3.84999999,129.05,128.95,37.44874651]
[1726065157332,29.69,129.04,128.95,7.75874651]
[1726065157535,34.9888372,129.04,128.95,7.75874651]
[1726065158137,38.8637372,129.04,128.95,7.75874651]
[1726065158540,34.9649,129.04,129.0,3.8759]
[1726065158845,1.4,129.04,128.95,37.44874651]
[1726065159229,32.4723,129.06,128.95,37.44874651]
[1726065159430,3.88518489,129.05,128.95,37.44874651]
[1726065159640,32.4723,129.06,128.95,37.44874651]
[1726065159942,1.3787,129.04,128.95,7.75874651]
[1726065160139,3.94332894,129.03,128.95,7.75874651]
[1726065160337,29.69,129.03,128.94,3.78285138]
[1726065160541,29.69,129.03,128.91,29.69]
[1726065160740,29.69,129.03,128.96,3.8772]
[1726065160942,29.69,129.03,128.94,3.79022877]
[1726065161243,29.69,129.03,128.91,29.69]
[1726065161440,29.69,129.03,128.91,33.47984102]
[1726065161655,33.5653,129.03,128.99,3.8762]
[1726065161944,5.32125368,129.04,128.99,3.8762]
[1726065161945,1.3787,129.04,128.99,3.8762]
[1726065162132,1.3787,129.04,128.93,29.69]
[1726065162340,3.8755,129.02,128.98,3.8766]
[1726065162741,33.5654,129.03,128.93,29.69]
[1726065162942,29.69,129.03,128.91,29.69]
[1726065163139,29.69,128.99,128.89,4.2194]
[1726065163344,2.8307,128.98,128.89,2.7921]
[1726065163647,29.69,128.97,128.86,29.69]
[1726065163842,33.5673,128.97,128.86,29.69]
[1726065164042,29.69,128.97,128.86,29.69]
[1726065164346,4.2154,128.98,128.84,4.0293]
[1726065164347,29.69,128.92,128.84,4.0293]
[1726065164650,29.69,128.94,128.84,7.8893555]
[1726065164833,29.69,128.94,128.84,4.0293]
[1726065165040,29.69,128.94,128.73,7.725]
[1726065165237,29.69,128.86,128.81,3.8816]
[1726065165544,29.69,128.83,128.75,1.3497]
[1726065165940,3.84841831,128.94,128.78,29.69]
[1726065166239,29.69,128.9,128.76,1.389]
[1726065166440,29.69,128.9,128.81,29.69]
[1726065166745,29.69,128.92,128.82,4.1186]
[1726065166935,29.69,128.92,128.82,8.01085172]
[1726065168042,29.69,128.92,128.89,3.8794]
[1726065168245,29.69,128.9,128.82,8.01085172]
[1726065168443,29.69,128.9,128.89,3.8794]
[1726065168741,94.7243311,128.99,128.87,29.69]
[1726065168742,29.69,128.96,128.87,29.69]
[1726065168943,29.69,128.96,128.94,3.8779]
[1726065169145,29.69,128.96,128.87,29.69]
[1726065169339,29.69,128.92,128.83,4.1123]
[1726065169536,29.69,128.92,128.83,7.99032607]
[1726065169740,2.739,128.94,128.83,7.99032607]
[1726065170349,1.3441,128.94,128.86,29.69]
[1726065170544,29.69,128.97,128.86,29.69]
[1726065170753,29.69,128.95,128.84,29.69]
[1726065171145,29.69,128.95,128.93,3.8779]
[1726065171848,29.69,128.95,128.91,3.8786]
[1726065172049,29.69,128.93,128.83,7.99032607]
[1726065172449,1.4024,128.94,128.93,3.8782]
[1726065172953,1.3441,128.96,128.95,3.8776]
[1726065173351,1.393,128.98,128.88,29.69]
[1726065173647,31.0924,128.99,128.98,3.8767]
[1726065173648,1.4024,128.99,128.98,3.8767]
[1726065173852,1.3,129.0,128.93,3.88087482]
[1726065174047,29.69,129.01,128.9,29.69]
[1726065174348,29.69,129.03,128.93,29.69]
[1726065174553,29.69,129.03,129.02,3.8755]
[1726065174748,29.69,129.03,128.93,29.69]
[1726065174949,4.0075,129.04,128.93,29.69]
[1726065175157,2.7024,129.04,129.03,3.8752]
[1726065175356,29.69,129.08,128.95,29.69]
[1726065175654,29.69,129.08,129.06,3.8743]
[1726065176949,33.7937,129.1,128.99,3.97083914]
[1726065177254,33.7937,129.1,128.97,29.69]
[1726065177452,29.69,129.08,129.05,3.8744]
[1726065177757,29.69,129.08,128.97,33.62707506]
[1726065178148,33.7937,129.1,128.97,33.62707506]
[1726065178354,32.3952,129.1,128.97,33.62707506]
[1726065178555,33.806,129.1,129.06,3.8741]
[1726065178855,33.806,129.1,128.97,33.62707506]
[1726065179049,33.806,129.1,128.99,29.69]
[1726065179354,33.806,129.1,128.99,33.54995349]
[1726065179660,29.69,129.16,129.05,29.69]
[1726065180054,33.7834,129.18,129.07,29.69]
[1726065180455,33.7834,129.18,129.06,4.0749]
[1726065180456,29.69,129.16,129.06,4.0749]
[1726065180651,29.69,129.14,129.1,3.8729]
[1726065181053,29.69,129.14,129.03,31.1228]
[1726065181353,29.69,129.12,129.03,1.4328]
[1726065182055,29.69,129.14,129.03,31.1228]
[1726065182246,4.0934,129.18,129.07,29.69]
[1726065182452,4.0934,129.18,129.08,2.78]
[1726065182646,2.6826,129.18,129.09,29.69]
[1726065182857,1.3364,129.2,129.11,29.69]
[1726065183060,1.3364,129.2,129.19,3.8704]
[1726065183250,1.3952,129.22,129.14,29.69]
[1726065183454,1.3952,129.22,129.14,33.4818942]
[1726065183847,2.6999,129.24,129.16,29.69]
[1726065184256,2.6999,129.24,129.23,3.8692]
[1726065184560,1.3364,129.24,129.23,3.8692]
[1726065184757,1.3364,129.24,129.16,33.65416505]
[1726065185148,29.69,129.27,129.16,33.65416505]
[1726065185362,1.3305,129.29,129.19,29.69]
[1726065185957,1.3305,129.29,129.27,3.8678]
[1726065186151,1.3305,129.29,129.19,29.69]
[1726065186656,1.3305,129.29,129.17,31.1245]
[1726065186857,1.3305,129.29,129.19,29.69]
[1726065187062,1.3305,129.29,129.28,3.8677]
[1726065187269,1.3305,129.29,129.2,1.4277]
[1726065187664,1.3305,129.29,129.28,3.8677]
[1726065188362,5.2522787,129.29,129.07,3.89134138]
[1726065188557,5.2522787,129.29,129.16,3.85522918]
[1726065188558,29.69,129.23,129.16,3.85522918]
[1726065188758,29.69,129.25,129.14,29.69]
[1726065188963,29.69,129.25,129.13,1.3532]
[1726065188964,29.69,129.27,129.16,31.1177]
[1726065189265,1.3305,129.29,129.19,29.69]
[1726065190068,31.1066,129.3,129.27,3.8679]
[1726065190266,31.1066,129.3,129.2,29.69]
[1726065190267,1.4166,129.3,129.2,29.69]
[1726065190468,1.3456,129.31,129.21,1.3674]
[1726065190668,29.69,129.29,129.21,1.3674]
[1726065191074,29.69,129.29,129.25,3.8685]
[1726065191368,29.69,129.29,129.21,1.3674]
[1726065191566,29.69,129.29,129.25,3.8686]
[1726065191769,29.69,129.29,129.21,1.3674]
[1726065192162,29.69,129.27,129.16,31.1177]
[1726065192371,29.69,129.27,129.17,1.3674]
[1726065192664,31.0676,129.29,129.18,29.69]
[1726065192864,31.0676,129.29,129.17,1.3674]
[1726065192865,1.3776,129.29,129.2,29.69]
[1726065193065,29.69,129.32,129.2,29.69]
[1726065193568,29.69,129.32,129.22,29.69]
[1726065193774,29.69,129.34,129.24,29.69]
[1726065194069,33.53698692,129.34,129.23,2.6647]
[1726065194462,29.69,129.34,129.23,2.6647]
[1726065194760,4.2561,129.36,129.24,30.9864]
[1726065194957,29.69,129.34,129.23,2.6647]
[1726065195159,33.5562,129.34,129.26,3.8681]
[1726065195359,29.69,129.34,129.26,3.8681]
[1726065195571,29.69,129.34,129.24,3.96263634]
[1726065195769,29.69,129.34,129.27,3.868]
[1726065196069,29.69,129.34,129.23,2.6647]
[1726065196269,29.69,129.34,129.28,3.8675]
[1726065196470,48.24,129.34,129.23,50.9047]
[1726065196665,48.24,129.34,129.23,54.79500931]
[1726065197271,48.24,129.32,129.23,6.55500931]
[1726065197473,48.24,129.3,129.21,1.2964]
[1726065197966,3.80559441,129.29,129.21,1.2964]
[1726065198167,48.24,129.3,129.21,1.2964]
[1726065198473,48.24,129.28,129.15,48.24]
[1726065198772,48.24,129.26,129.15,49.6273]
[1726065200172,48.24,129.26,129.15,1.3873]
[1726065200370,52.1086,129.26,129.19,3.8701]
[1726065200572,48.24,129.26,129.19,3.8701]
[1726065200867,48.24,129.26,129.15,1.3873]
[1726065201272,48.24,129.26,129.15,49.6273]
[1726065201465,52.1083,129.26,129.15,49.6273]
[1726065201665,48.24,129.26,129.15,49.6273]
[1726065201865,48.24,129.26,129.15,1.3873]
[1726065202065,3.8688,129.25,129.19,3.8704]
[1726065202368,48.24,129.26,129.15,1.3873]
[1726065202778,48.24,129.23,129.15,1.3873]
[1726065203173,48.24,129.23,129.18,3.8706]
[1726065203372,48.24,129.23,129.15,1.3873]
[1726065203674,48.24,129.23,129.18,3.8705]
[1726065203878,48.24,129.23,129.15,1.3873]
[1726065204268,52.08519872,129.23,129.15,1.3873]
[1726065204569,48.24,129.23,129.15,1.3873]
[1726065205774,48.24,129.26,129.2,3.8699]
[1726065205775,52.1085,129.26,129.2,3.8699]
[1726065205971,52.1085,129.26,129.15,1.3873]
[1726065206368,48.24,129.26,129.15,1.3873]
[1726065206877,48.24,129.26,129.21,3.8697]
[1726065207075,3.868,129.27,129.15,49.6273]
[1726065207076,48.24,129.27,129.19,3.81763294]
[1726065207282,48.24,129.27,129.22,3.8693]
[1726065207482,48.24,129.27,129.19,3.94689991]
[1726065207677,48.24,129.27,129.19,3.94457775]
[1726065207973,48.24,129.27,129.23,3.8692]
[1726065208366,48.24,129.27,129.2,3.94341667]
[1726065208367,48.24,129.27,129.24,3.8687]
[1726065208573,48.24,129.27,129.17,48.24]
[1726065209678,52.2713,129.29,129.24,3.8688]
[1726065209876,50.9509,129.29,129.21,3.96348537]
[1726065210077,2.6905,129.36,129.21,48.24]
[1726065210271,2.6905,129.36,129.21,52.1640169]
[1726065210472,2.6905,129.36,129.22,2.7294]
[1726065210667,1.4125,129.31,129.26,3.8681]
[1726065211278,9.22730754,129.31,129.26,3.8681]
[1726065211482,1.4125,129.31,129.27,3.868]
[1726065211673,1.4125,129.31,129.22,2.7294]
[1726065211878,1.4125,129.31,129.23,1.3522]
[1726065212082,1.4125,129.31,129.28,3.8675]
[1726065212275,5.28118366,129.31,129.22,2.7294]
[1726065212476,48.24,129.3,129.24,3.8688]
[1726065212675,48.24,129.3,129.22,2.7294]
[1726065212676,52.1073,129.3,129.22,2.7294]
[1726065212876,48.24,129.3,129.22,1.362]
[1726065213173,3.8682,129.27,129.18,1.3704]
[1726065213378,48.24,129.28,129.19,3.8459432]
[1726065213577,48.24,129.28,129.21,3.8696]
[1726065213776,3.8683,129.26,129.21,3.8696]
[1726065214080,48.24,129.26,129.18,3.8923731]
[1726065214281,48.24,129.24,129.13,48.24]
[1726065214474,3.8693,129.23,129.14,1.42250886]
[1726065214675,48.24,129.24,129.19,3.8702]
[1726065215379,48.24,129.22,129.12,4.1218]
[1726065216471,48.24,129.22,129.16,3.8713]
[1726065216780,48.24,129.22,129.12,4.1218]
[1726065218281,29.74,129.22,129.12,4.1218]
[1726065219679,29.74,129.22,129.17,3.8708]
[1726065219880,29.74,129.22,129.12,4.1218]
[1726065220181,29.74,129.22,129.18,3.8707]
[1726065220788,29.74,129.22,129.19,3.8702]
[1726065220990,29.74,129.22,129.12,4.1218]
[1726065221190,1.3495,129.25,129.22,3.8693]
[1726065221482,1.3495,129.25,129.12,4.1218]
[1726065221483,29.74,129.24,129.12,4.1218]
[1726065221687,3.8694,129.23,129.12,4.1218]
[1726065221881,29.74,129.24,129.12,4.1218]
[1726065222495,29.74,129.24,129.19,3.8704]
[1726065222880,29.74,129.24,129.12,4.1218]
[1726065223291,33.609,129.24,129.12,4.1218]
[1726065223489,29.74,129.2,129.12,4.1218]
[1726065223688,29.74,129.2,129.15,3.8713]
[1726065223887,1.2986,129.19,129.13,3.86351242]
[1726065224091,1.2986,129.19,129.12,2.7227]
[1726065224683,1.2986,129.19,129.12,6.5935678]
[1726065226087,29.74,129.18,129.08,1.3268]
[1726065226389,29.74,129.12,128.91,8.08777247]
[1726065226589,1.2986,129.19,128.98,1.42362981]
[1726065226590,29.74,129.09,128.98,1.42362981]
[1726065226797,3.87232897,129.08,128.98,1.42362981]
[1726065226997,3.87232897,129.08,128.97,1.3982]
[1726065227302,29.74,129.07,128.98,3.92343349]
[1726065227496,29.74,129.07,129.0,3.8761]
[1726065228292,48.39,129.05,129.0,3.8761]
[1726065229094,48.39,129.05,128.98,3.92343349]
[1726065229297,48.39,129.05,128.94,48.39]
[1726065229594,7.77921623,129.11,128.96,48.39]
[1726065229595,48.39,129.08,128.96,48.39]
[1726065229797,48.39,129.08,128.97,1.42455458]
[1726065230000,48.39,129.08,128.97,2.81865458]
[1726065230199,48.39,129.08,128.97,1.3941]
[1726065230887,52.2638,129.08,129.02,3.8753]
[1726065231896,48.39,129.08,129.03,3.8751]
[1726065232293,3.8748,129.05,128.99,3.8762]
[1726065232497,48.39,129.04,128.94,52.33581815]
[1726065232793,48.39,129.06,128.95,1.42458614]
[1726065233196,48.39,129.06,128.96,48.39]
[1726065233390,48.39,129.08,128.98,48.39]
[1726065233588,48.39,129.1,128.98,48.39]
[1726065233994,48.39,129.1,128.99,2.7585]
[1726065234492,48.39,129.1,129.06,3.8743]
[1726065234900,48.39,129.1,128.99,2.7585]
[1726065235097,48.39,129.1,129.06,3.8741]
[1726065235303,3.9909,129.11,129.02,3.81142458]
[1726065235504,3.9909,129.11,129.07,3.8737]
[1726065235802,3.9909,129.11,129.04,3.79378487]
[1726065236000,3.9909,129.11,129.08,3.8735]
[1726065236194,3.9909,129.11,129.05,3.85190638]
[1726065236392,3.9909,129.11,129.03,48.39]
[1726065236591,3.9909,129.11,129.08,3.8737]
[1726065237591,3.9909,129.11,129.03,52.18920954]
[1726065237903,48.39,129.15,129.05,48.39]
[1726065238508,48.39,129.15,129.06,3.8666305]
[1726065239014,52.2617,129.15,129.06,3.8666305]
[1726065239305,52.2617,129.15,129.05,48.39]
[1726065239505,48.39,129.13,129.01,48.39]
[1726065239702,48.39,129.13,128.99,4.1137]
[1726065239703,48.39,129.11,128.99,52.5037]
[1726065239898,52.2634,129.09,129.04,3.8749]
[1726065240507,48.39,129.07,128.99,2.7585]
[1726065240717,48.39,129.07,128.94,3.94581815]
[1726065240718,48.39,129.07,128.95,48.39]
[1726065241002,48.39,129.05,129.0,3.8759]
[1726065241204,48.39,129.05,128.98,3.82726568]
[1726065241397,3.90743609,129.08,128.95,2.7116]
[1726065241398,48.39,129.02,128.95,2.7116]
[1726065241597,48.39,129.02,128.97,3.8768]
[1726065242000,48.39,129.02,128.94,3.81409759]
[1726065242399,48.39,129.04,128.94,3.81409759]
[1726065242599,48.39,129.06,128.95,48.39]
[1726065243411,48.39,129.06,128.96,1.42445375]
[1726065243602,48.39,129.06,128.95,48.39]
[1726065243905,3.96007751,129.07,128.94,3.81409759]
[1726065243906,48.39,129.04,128.94,3.81409759]
[1726065244204,52.2651,129.04,128.92,48.39]
[1726065244397,52.25007751,129.04,128.93,1.42468461]
[1726065244902,48.39,129.02,128.93,1.42468461]
[1726065245308,51.1795,129.02,128.93,1.42468461]
[1726065246007,48.39,129.0,128.89,3.79147286]
[1726065246207,48.39,129.0,128.9,1.42491505]
[1726065246409,1.4035,129.01,128.91,1.42491505]
[1726065246914,1.4035,129.01,128.98,3.8765]
[1726065248610,1.4035,129.01,128.95,3.93480696]
[1726065248811,1.4035,129.01,128.94,48.39]
[1726065249001,1.4035,129.01,128.94,52.2005761]
[1726065249198,1.4035,129.01,128.95,1.4246205]
[1726065249396,1.4035,129.01,129.0,3.8761]
[1726065249604,2.7895,129.02,128.95,2.6633]
[1726065250009,2.7895,129.02,129.01,3.8758]
[1726065250306,2.7895,129.02,128.95,2.6633]
[1726065250500,32.5695,129.02,128.98,3.8766]
[1726065250906,32.5695,129.02,128.94,3.8105761]
[1726065251108,32.5695,129.02,128.92,29.78]
[1726065251302,32.5695,129.02,128.93,1.42463955]
[1726065251509,32.5695,129.02,128.94,3.82026827]
[1726065251801,32.5695,129.02,128.93,3.96681398]
[1726065251998,29.78,129.0,128.9,29.78]
[1726065252204,29.78,129.0,128.96,3.8771]
[1726065252811,29.78,129.0,128.97,3.8768]
[1726065253016,32.5695,129.02,128.92,3.96194356]
[1726065253204,32.5695,129.02,128.9,29.78]
[1726065253513,32.5695,129.02,128.98,3.8765]
[1726065253711,32.5695,129.02,128.95,3.91891266]
[1726065253898,2.7895,129.02,128.94,29.78]
[1726065254103,2.7895,129.02,128.95,1.42458534]
[1726065254703,31.1513,129.04,129.02,3.8755]
[1726065254912,31.1513,129.04,128.96,2.833]
[1726065255310,31.1513,129.04,129.02,3.8753]
[1726065255909,31.1513,129.04,128.96,2.833]
[1726065256316,31.1513,129.04,129.0,3.876]
[1726065256512,1.3713,129.04,128.96,2.833]
[1726065256902,1.3713,129.04,129.01,3.8756]
[1726065257111,31.1513,129.04,128.96,2.833]
[1726065257306,31.1513,129.04,128.94,3.96504488]
[1726065257504,31.1513,129.04,128.92,34.0274]
[1726065257707,31.1513,129.04,128.94,29.78]
[1726065257911,31.1513,129.04,128.95,1.42464016]
[1726065258417,31.1513,129.04,128.94,3.81356589]
[1726065258717,31.1513,129.04,128.95,1.42455334]
[1726065259016,29.78,128.99,128.89,174.85216112]
[1726065259218,29.78,128.99,128.9,34.01854159]
[1726065259513,29.78,128.99,128.91,1.42504159]
[1726065259715,29.78,128.99,128.97,3.8769]
[1726065260810,29.78,128.99,128.9,6.6641835]
[1726065261110,29.78,128.99,128.94,3.8777]
[1726065261111,33.6564,128.99,128.94,3.8777]
[1726065261309,29.78,128.99,128.9,6.6641835]
[1726065261710,29.78,128.99,128.95,3.8774]
[1726065262009,29.78,128.99,128.9,6.6641835]
[1726065262210,29.78,128.97,128.93,3.878]
[1726065262410,29.78,128.97,128.89,174.85216112]
[1726065262411,29.78,128.95,128.89,178.76724448]
[1726065263611,1.3054,128.96,128.89,178.76724448]
[1726065263816,1.3054,128.96,128.9,1.42512181]
[1726065264013,1.3054,128.96,128.92,3.8783]
[1726065264215,29.78,128.95,128.92,3.8783]
[1726065264416,29.78,128.95,128.87,2.8119]
[1726065264712,29.78,128.95,128.88,1.42528103]
[1726065264917,29.78,128.95,128.89,3.88561457]
[1726065265415,29.78,128.93,128.87,2.8119]
[1726065265611,29.78,128.93,128.88,1.42531082]
[1726065266421,29.78,128.93,128.87,2.8119]
[1726065266810,29.78,128.95,128.92,3.8785]
[1726065267008,29.78,128.95,128.89,3.92267563]
[1726065267315,29.78,128.95,128.91,3.8786]
[1726065267721,29.78,128.95,128.87,2.8119]
[1726065267918,29.78,128.95,128.88,1.42536393]
[1726065268122,29.78,128.95,128.89,3.95719394]
[1726065268422,29.78,128.95,128.94,3.8779]
[1726065269017,1.3054,128.96,128.95,3.8776]
[1726065269418,1.3054,128.96,128.91,3.89612908]
[1726065269717,1.3054,128.96,128.87,2.8119]
[1726065269918,1.3054,128.96,128.88,1.42517178]
[1726065270114,1.3054,128.96,128.93,3.878]
[1726065270308,1.3054,128.96,128.87,2.8119]
[1726065270513,1.3054,128.96,128.88,1.42518408]
[1726065270715,29.78,128.95,128.89,3.89845628]
[1726065270915,29.78,128.95,128.87,2.8119]
[1726065271122,29.78,128.95,128.88,1.42519634]
[1726065271420,29.78,128.93,128.88,1.42519634]
[1726065271620,29.78,128.93,128.9,3.879]
[1726065271819,29.78,128.93,128.84,2.6934]
[1726065272118,29.78,128.93,128.92,3.8785]
[1726065272319,1.3054,128.96,128.9,3.7852932]
[1726065272520,1.3054,128.96,128.87,29.78]
[1726065272710,2.7528,128.99,128.97,3.8769]
[1726065272912,2.7528,128.99,128.92,3.87643499]
[1726065273113,2.7528,128.99,128.89,29.78]
[1726065273313,29.78,128.96,128.89,3.9594322]
[1726065273508,29.78,128.96,128.85,37.5412]
[1726065273718,29.78,128.98,128.87,29.78]
[1726065273921,29.78,128.98,128.88,1.42520324]
[1726065274529,29.78,128.98,128.95,3.8774]
[1726065274718,29.78,128.98,128.92,3.91616255]
[1726065274919,29.78,128.98,128.87,29.78]
[1726065275116,29.78,128.98,128.88,1.4250253]
[1726065275725,33.6568,128.98,128.89,3.97355359]
[1726065275921,29.78,128.96,128.85,37.5412]
[1726065276124,29.78,128.96,128.92,3.8783]
[1726065276330,29.78,128.94,128.92,3.8783]
[1726065276628,29.78,128.95,128.85,37.5412]
[1726065276819,29.78,128.95,128.86,1.42512908]
[1726065277018,29.78,128.95,128.85,37.5412]
[1726065277522,29.78,128.95,128.86,1.42512202]
[1726065277720,29.78,128.95,128.94,3.8779]
[1726065278028,29.78,128.95,128.9,3.80089971]
[1726065278219,29.78,128.95,128.93,3.8781]
[1726065278525,29.78,128.95,128.85,37.5412]
[1726065278726,29.78,128.95,128.86,1.42512078]
[1726065279426,29.78,128.93,128.9,3.8789]
[1726065280326,29.78,128.93,128.91,3.8788]
[1726065280627,29.78,128.93,128.84,1.3145]
[1726065280926,29.78,128.93,128.85,2.85806806]
[1726065281129,29.78,128.93,128.85,1.4327]
[1726065281424,29.78,128.96,128.86,1.4254015]
[1726065281926,29.78,128.96,128.85,1.4327]
[1726065281927,33.6573,128.96,128.91,3.8785]
[1726065282719,29.78,128.94,128.9,3.879]
[1726065283225,29.78,128.94,128.85,1.4327]
[1726065283413,29.78,128.94,128.86,1.42530018]
[1726065283614,29.78,128.94,128.85,1.4327]
[1726065283820,29.78,128.94,128.9,3.879]
[1726065284319,29.78,128.94,128.85,1.4327]
[1726065284520,29.78,128.94,128.86,1.42527716]
[1726065285228,29.78,128.94,128.85,1.4327]
[1726065285423,29.78,128.94,128.9,3.8789]
[1726065286219,29.78,128.94,128.91,3.8788]
[1726065286420,29.78,128.94,128.85,1.4327]
[1726065286620,29.78,128.94,128.86,1.42533009]
[1726065286820,29.78,128.94,128.85,1.4327]
[1726065287019,29.78,128.94,128.86,1.42529932]
[1726065287228,29.78,128.94,128.86,1.42533148]
[1726065287531,29.78,128.93,128.85,1.4327]
[1726065287933,29.78,128.93,128.9,3.879]
[1726065288228,29.78,128.93,128.85,1.4327]
[1726065288624,29.78,128.93,128.86,1.42527771]
[1726065288824,29.78,128.93,128.85,1.4327]
[1726065289127,29.78,128.93,128.86,1.42530983]
[1726065289520,29.78,128.93,128.85,1.4327]
[1726065289723,29.78,128.96,128.86,1.42532547]
[1726065290228,29.78,128.96,128.85,1.4327]
[1726065290427,29.78,128.96,128.86,1.42522578]
[1726065290729,29.78,128.96,128.92,3.8783]
[1726065291031,29.78,128.96,128.89,3.79062912]
[1726065291224,29.78,128.96,128.92,3.8783]
[1726065291424,29.78,128.96,128.85,31.2127]
[1726065291625,29.78,128.96,128.86,1.42528913]
[1726065292024,29.78,128.96,128.85,31.2127]
[1726065292424,29.78,128.94,128.85,1.4327]
[1726065292625,29.78,128.92,128.84,1.3145]
[1726065292833,2.7731,128.91,128.81,1.3316]
[1726065293023,29.78,128.9,128.81,1.3316]
[1726065293224,29.78,128.9,128.82,1.42567086]
[1726065293527,2.7731,128.91,128.82,1.42567086]
[1726065293528,2.7731,128.91,128.89,3.8792]
[1726065293731,2.7731,128.91,128.83,31.2171]
[1726065293930,2.7731,128.91,128.84,1.42539772]